[Event "Chpt Reg Jeunes Occitanie 2026 - Espalion"]
[Site "Espalion, France"]
[Round "6.19"]
[ECO "?"]
[Annotator "?"]
[TimeControl "1h30 + 30sec/cp"]

1. e4 {[%clk 1:30:55][%emt 0:00:05]} 1... e5 {[%clk 1:30:52][%emt 0:00:09]} 2.
Nf3 {[%clk 1:31:11][%emt 0:00:14]} 2... Nc6 {[%clk 1:31:14][%emt 0:00:08]} 3.
Bc4 {[%clk 1:31:17][%emt 0:00:24]} 3... Bc5 {[%clk 1:31:35][%emt 0:00:09]} 4.
c3 {[%clk 1:31:33][%emt 0:00:13]} 4... Nf6 {[%clk 1:31:50][%emt 0:00:16]} 5.
d3 {[%clk 1:31:24][%emt 0:00:39]} 5... d5 {[%clk 1:29:51][%emt 0:02:29]} 6.
exd5 {[%clk 1:31:05][%emt 0:00:49]} 6... Nxd5 {[%clk 1:30:09][%emt 0:00:12]}
7. Qb3 {[%clk 1:31:01][%emt 0:00:34]} 7... Be6 {[%clk 1:20:25][%emt 0:10:14]}
8. Qxb7 {[%clk 1:29:35][%emt 0:01:56]} 8... Nde7 {[%clk 1:20:35][%emt 0:00:20]}
 9. Bxe6 {[%clk 1:28:28][%emt 0:01:36]} 9... fxe6 {[%clk 1:20:53][%emt
0:00:12]} 10. Qb5 {[%clk 1:27:21][%emt 0:01:38]} 10... Bd6 {[%clk
1:20:22][%emt 0:01:01]} 11. Bg5 {[%clk 1:26:21][%emt 0:01:29]} 11... O-O
{[%clk 1:19:29][%emt 0:01:22]} 12. Qb3 {[%clk 1:24:35][%emt 0:02:17]} 12...
Qd7 {[%clk 1:17:37][%emt 0:02:23]} 13. O-O {[%clk 1:22:19][%emt 0:02:45]}
13... h6 {[%clk 1:15:57][%emt 0:02:10]} 14. Bxe7 {[%emt 0:02:47]} 14... Bxe7
{[%clk 1:13:57][%emt 0:02:26]} 15. Qc2 {[%clk 1:19:08][%emt 0:01:29]} 15...
Rad8 {[%clk 1:13:07][%emt 0:01:21]} 16. Qb3 {[%clk 1:05:55][%emt 0:13:43]}
16... Rb8 {[%clk 1:12:07][%emt 0:01:29]} 17. Qc2 {[%clk 0:57:08][%emt 0:09:16]}
 17... Rbd8 {[%clk 1:08:32][%emt 0:04:06]} 18. Ne1 {[%clk 0:48:19][%emt
0:09:19]} 18... a5 {[%clk 1:05:36][%emt 0:03:26]} 19. Nd2 {[%clk 0:47:23][%emt
0:01:26]} 19... Nb8 {[%clk 1:02:52][%emt 0:03:14]} 20. Ne4 {[%clk
0:46:26][%emt 0:01:27]} 20... Na6 {[%clk 1:02:59][%emt 0:00:23]} 21. Rd1
{[%clk 0:46:16][%emt 0:00:40]} 21... Nc5 {[%clk 1:02:48][%emt 0:00:42]} 22.
Nxc5 {[%clk 0:46:31][%emt 0:00:15]} 22... Bxc5 {[%clk 1:03:03][%emt 0:00:15]}
23. Nf3 {[%clk 0:46:51][%emt 0:00:09]} 23... Rf5 {[%clk 1:01:26][%emt 0:02:07]}
 24. d4 {[%clk 0:46:16][%emt 0:01:05]} 24... exd4 {[%clk 1:01:16][%emt
0:00:41]} 25. cxd4 {[%clk 0:46:31][%emt 0:00:15]} 25... Rd5 {[%clk
1:01:09][%emt 0:00:37]} 26. Qe2 {[%clk 0:44:44][%emt 0:02:17]} 26... g5 {[%clk
0:54:32][%emt 0:07:07]} 27. Ne5 {[%clk 0:44:22][%emt 0:00:53]} 27... Qg7
{[%clk 0:52:10][%emt 0:02:52]} 28. Nc6 {[%clk 0:42:04][%emt 0:02:48]} 28...
R8d6 {[%clk 0:51:14][%emt 0:01:26]} 29. dxc5 {[%clk 0:41:52][%emt 0:00:42]}
29... Rxd1 {[%clk 0:50:29][%emt 0:01:15]} 30. Rxd1 {[%clk 0:42:16][%emt
0:00:06]} 30... Rxd1+ {[%clk 0:50:00][%emt 0:00:58]} 31. Qxd1 {[%clk
0:42:40][%emt 0:00:07]} 31... Qxb2 {[%clk 0:49:40][%emt 0:00:50]} 32. Qd8+
{[%clk 0:42:47][%emt 0:00:23]} 32... Kh7 {[%clk 0:49:50][%emt 0:00:21]} 33.
Qxc7+ {[%clk 0:42:56][%emt 0:00:21]} 33... Kg6 {[%clk 0:50:04][%emt 0:00:16]}
34. Ne5+ {[%clk 0:43:10][%emt 0:00:15]} 34... Kh5 {[%clk 0:50:06][%emt
0:00:28]} 1-0

[White "DEMANT, Thylan"]
[Black "BAILLA, Yasmine"]
[WhiteElo "1586"]
[BlackElo "1618"]
[Result "0-1"]
[Date "2026.03.06"]

[Event "Chpt Reg Jeunes Occitanie 2026 - Espalion"]
[Site "Espalion, France"]
[Round "6.20"]
[ECO "?"]
[Annotator "?"]
[TimeControl "1h30 + 30sec/cp"]

1. d4 {[%clk 1:30:56][%emt 0:00:02]} 1... Nf6 {[%clk 1:30:55][%emt 0:00:07]}
2. c4 {[%clk 1:31:22][%emt 0:00:05]} 2... e6 {[%clk 1:31:21][%emt 0:00:05]} 3.
Nc3 {[%clk 1:31:48]} 3... Bb4 {[%emt 0:00:09]} 4. a3 Bxc3+ {[%clk 1:31:44]} 5.
bxc3 {[%clk 1:32:13]} 5... Ne4 {[%clk 1:31:42][%emt 0:01:17]} 6. Qc2 {[%clk
1:32:37]} 6... f5 {[%emt 0:00:42]} 7. Nf3 b6 {[%clk 1:31:56]} 8. g3 {[%clk
1:32:14]} 8... Bb7 {[%clk 1:31:24][%emt 0:03:01]} 9. Bg2 {[%clk 1:32:33]} 9...
c6 {[%emt 0:17:58]} 10. O-O O-O 11. h4 Ba6 12. Qb3 d5 {[%clk 1:14:02]} 13. Ne5
{[%clk 1:27:57]} 13... Qc7 {[%emt 0:28:05]} 14. Re1 Nd7 15. Bf4 Nxe5 {[%clk
0:58:38]} 16. Bxe5 {[%clk 1:21:52]} 16... Bxc4 {[%clk 0:49:01][%emt 0:19:13]}
17. Qxc4 {[%clk 1:16:04]} 17... Qxe5 {[%clk 0:48:44][%emt 0:02:29]} 18. Qxc6
{[%clk 1:16:19]} 18... Qf6 {[%clk 0:48:14][%emt 0:01:14]} 19. Rac1 {[%clk
1:09:29]} 19... Rac8 {[%emt 0:29:22]} 20. Qd7 Nxc3 21. Rc2 Rfd8 22. Qxa7 Qxd4
23. Qe7 Re8 24. Qd7 Qc5 25. Qa7 Ra8 26. Qb7 Qxa3 27. Qc6 Rac8 28. Rxc3 Qxc3
29. Qxc3 Rxc3 30. Rb1 Rb8 31. Bf1 b5 32. e3 b4 33. Be2 b3 34. Kg2 b2 35. Kf3
Rc1 36. Bd3 Rxb1 37. Bxb1 Rc8 38. Ke2 Rc1 39. Ba2 Ra1 40. Kd2 Rxa2 41. Kc2
b1=Q+ 42. Kxb1 Rxf2 {[%clk 0:26:43]} 0-1

[White "BENYETTOU, Louis"]
[Black "AMRANE, Samy-Islam"]
[WhiteElo "1841"]
[BlackElo "1809"]
[Result "1-0"]
[Date "2026.03.07"]

[Event "Chpt Reg Jeunes Occitanie 2026 - Espalion"]
[Site "Espalion, France"]
[Round "7.16"]
[ECO "?"]
[Annotator "?"]
[TimeControl "1h30 + 30sec/cp"]

1. e4 {[%clk 1:30:57][%emt 0:00:02]} 1... c5 {[%clk 1:30:23][%emt 0:00:37]} 2.
c3 {[%clk 1:31:22][%emt 0:00:05]} 2... Nf6 {[%clk 1:30:13][%emt 0:00:40]} 3.
e5 {[%clk 1:31:47][%emt 0:00:06]} 3... Nd5 {[%clk 1:30:11][%emt 0:00:32]} 4.
Nf3 {[%clk 1:32:09][%emt 0:00:08]} 4... d6 {[%clk 1:28:31][%emt 0:02:08]} 5.
d4 {[%clk 1:32:07][%emt 0:00:34]} 5... cxd4 {[%clk 1:27:30][%emt 0:01:31]} 6.
cxd4 {[%clk 1:32:27][%emt 0:00:07]} 6... e6 {[%clk 1:26:53][%emt 0:01:09]} 7.
Bc4 {[%clk 1:28:24][%emt 0:04:33]} 7... Nb6 {[%clk 1:26:37][%emt 0:00:46]} 8.
Bb3 {[%clk 1:27:41][%emt 0:01:14]} 8... Nc6 {[%clk 1:22:56][%emt 0:04:11]} 9.
Qe2 {[%clk 1:21:28][%emt 0:06:43]} 9... dxe5 {[%clk 1:19:50][%emt 0:03:35]}
10. dxe5 {[%clk 1:21:48][%emt 0:00:10]} 10... Nd4 {[%clk 1:13:48][%emt
0:06:33]} 11. Nxd4 {[%clk 1:21:34][%emt 0:00:41]} 11... Qxd4 {[%clk
1:12:30][%emt 0:01:49]} 12. O-O {[%clk 1:21:14][%emt 0:00:50]} 12... Be7
{[%clk 1:10:47][%emt 0:02:14]} 13. Rd1 {[%clk 1:19:48][%emt 0:01:55]} 13...
Qc5 {[%clk 1:09:12][%emt 0:02:05]} 14. Nc3 {[%clk 1:16:53][%emt 0:03:26]}
14... O-O {[%clk 1:09:06][%emt 0:00:35]} 15. Bc2 {[%clk 1:14:43][%emt 0:02:40]}
 15... Rd8 {[%clk 1:04:29][%emt 0:05:09]} 16. Rxd8+ {[%clk 1:14:44][%emt
0:00:28]} 16... Bxd8 {[%clk 1:03:35][%emt 0:01:25]} 17. Qd3 {[%clk
1:14:46][%emt 0:00:27]} 17... Bc7 {[%clk 1:02:02][%emt 0:02:04]} 18. Qxh7+
{[%clk 1:14:53][%emt 0:00:21]} 18... Kf8 {[%emt 0:00:54]} 19. Qh8+ {[%clk
1:14:31]} 19... Ke7 {[%clk 1:02:56][%emt 0:00:05]} 20. Bg5+ {[%clk
1:14:20][%emt 0:00:41]} 20... Kd7 {[%clk 1:03:00][%emt 0:00:26]} 21. Rd1+
{[%clk 1:13:44][%emt 0:01:06]} 21... Kc6 {[%emt 0:00:16]} 22. Be4+ {[%clk
1:13:39][%emt 0:00:33]} 22... Nd5 {[%clk 1:03:32][%emt 0:00:14]} 23. Qe8+
{[%clk 1:12:47][%emt 0:01:22]} 23... Bd7 {[%clk 1:03:44][%emt 0:00:18]} 24.
Qxa8 {[%clk 1:13:05][%emt 0:00:11]} 24... Bxe5 {[%clk 1:04:08][%emt 0:00:07]}
25. Nxd5 {[%clk 1:12:52][%emt 0:00:42]} 25... exd5 {[%clk 1:04:18][%emt
0:00:21]} 26. Rc1 {[%clk 1:13:08][%emt 0:00:15]} 26... Kb6 {[%clk
1:04:39][%emt 0:00:09]} 27. Rxc5 {[%clk 1:13:24][%emt 0:00:12]} 27... Kxc5
{[%clk 1:05:03][%emt 0:00:07]} 28. Be3+ {[%clk 1:13:36][%emt 0:00:18]} 28...
Kb5 {[%emt 0:00:08]} 29. Bd3+ {[%clk 1:13:53][%emt 0:00:12]} 29... Ka4 {[%clk
1:05:46][%emt 0:00:09]} 30. Qxa7+ {[%clk 1:14:13][%emt 0:00:11]} 30... Kb4
{[%clk 1:06:13][%emt 0:00:04]} 31. Bc5# {[%clk 1:14:26][%emt 0:00:16]} 1-0

[White "LABARBE, Gabriel"]
[Black "LEMOINE, Luka"]
[WhiteElo "1731"]
[BlackElo "1691"]
[Result "1-0"]
[Date "2026.03.07"]

[Event "Chpt Reg Jeunes Occitanie 2026 - Espalion"]
[Site "Espalion, France"]
[Round "7.17"]
[ECO "?"]
[Annotator "?"]
[TimeControl "1h30 + 30sec/cp"]

1. e4 {[%clk 1:30:57][%emt 0:00:02]} 1... e5 {[%clk 1:30:54][%emt 0:00:06]} 2.
d4 {[%clk 1:31:23][%emt 0:00:06]} 2... exd4 {[%clk 1:31:03][%emt 0:00:20]} 3.
Nf3 {[%clk 1:31:46][%emt 0:00:07]} 3... Bb4+ {[%clk 1:31:20][%emt 0:00:13]} 4.
c3 {[%clk 1:32:09][%emt 0:00:07]} 4... dxc3 {[%clk 1:31:26][%emt 0:00:23]} 5.
bxc3 {[%clk 1:32:31][%emt 0:00:09]} 5... Bc5 {[%clk 1:31:10][%emt 0:00:46]} 6.
Bc4 {[%clk 1:32:51][%emt 0:00:10]} 6... Ne7 {[%clk 1:30:49][%emt 0:00:50]} 7.
Ng5 {[%clk 1:26:56][%emt 0:06:24]} 7... d5 {[%clk 1:29:49][%emt 0:01:31]} 8.
exd5 {[%clk 1:26:35][%emt 0:00:50]} 8... Qd6 {[%clk 1:29:38][%emt 0:00:41]} 9.
O-O {[%clk 1:25:58][%emt 0:01:07]} 9... h6 {[%clk 1:28:05][%emt 0:02:04]} 10.
Ne4 {[%clk 1:25:39][%emt 0:00:48]} 10... Qb6 {[%clk 1:28:16][%emt 0:00:20]}
11. Nxc5 {[%clk 1:25:42][%emt 0:00:27]} 11... Qxc5 {[%clk 1:28:39][%emt
0:00:07]} 12. Qe2 {[%clk 1:25:58][%emt 0:00:14]} 12... O-O {[%clk
1:28:29][%emt 0:00:40]} 13. Ba3 {[%clk 1:25:54][%emt 0:00:34]} 13... Qb6
{[%clk 1:27:17][%emt 0:01:41]} 14. Qxe7 {[%clk 1:25:06][%emt 0:01:18]} 14...
Nd7 {[%clk 1:27:17][%emt 0:00:31]} 15. Re1 {[%clk 1:23:28][%emt 0:02:07]}
15... Qg6 {[%clk 1:25:44][%emt 0:02:03]} 16. Qh4 {[%clk 1:21:55][%emt 0:02:03]}
 16... a6 {[%clk 1:24:12][%emt 0:02:03]} 17. Bxf8 {[%clk 1:21:01][%emt
0:01:23]} 17... Nxf8 {[%clk 1:24:38][%emt 0:00:05]} 18. Qg3 {[%clk
1:19:33][%emt 0:01:58]} 18... Qb6 {[%clk 1:24:11][%emt 0:00:58]} 19. Nd2
{[%clk 1:19:06][%emt 0:00:57]} 19... Bf5 {[%clk 1:23:21][%emt 0:01:19]} 20.
Ne4 {[%clk 1:18:00][%emt 0:01:37]} 20... Rd8 {[%clk 1:22:25][%emt 0:01:25]}
21. d6 {[%clk 1:17:42][%emt 0:00:49]} 21... Bxe4 {[%clk 1:21:55][%emt 0:01:00]}
 22. dxc7 {[%clk 1:17:31][%emt 0:00:41]} 22... Rc8 {[%clk 1:21:54][%emt
0:00:31]} 23. Rxe4 {[%clk 1:17:30][%emt 0:00:31]} 23... Rxc7 {[%clk
1:21:56][%emt 0:00:28]} 24. Bb3 {[%clk 1:16:51][%emt 0:01:08]} 24... Qc6
{[%clk 1:21:40][%emt 0:00:45]} 25. Rf4 {[%clk 1:15:51][%emt 0:01:30]} 25...
Re7 {[%clk 1:21:09][%emt 0:01:02]} 26. h3 {[%clk 1:15:09][%emt 0:01:12]} 26...
Ng6 {[%clk 1:21:08][%emt 0:00:31]} 27. Rc4 {[%clk 1:15:15][%emt 0:00:23]}
27... Qe8 {[%clk 1:21:12][%emt 0:00:26]} 28. Kh2 {[%clk 1:14:29][%emt 0:01:16]}
 28... Ne5 {[%clk 1:21:05][%emt 0:00:38]} 29. Re4 {[%clk 1:14:13][%emt
0:00:45]} 1-0

[White "BAILLA, Yasmine"]
[Black "TOURETTE, Maxence"]
[WhiteElo "1618"]
[BlackElo "1709"]
[Result "1/2-1/2"]
[Date "2026.03.07"]

[Event "Chpt Reg Jeunes Occitanie 2026 - Espalion"]
[Site "Espalion, France"]
[Round "7.18"]
[ECO "?"]
[Annotator "?"]
[TimeControl "1h30 + 30sec/cp"]

1. e4 {[%clk 1:30:59]} 1... e6 {[%clk 1:30:53][%emt 0:00:08]} 2. d4 {[%clk
1:31:24][%emt 0:00:05]} 2... d5 {[%clk 1:31:16][%emt 0:00:06]} 3. e5 {[%clk
1:31:50][%emt 0:00:04]} 3... Ne7 {[%clk 1:31:40][%emt 0:00:06]} 4. Bd3 {[%clk
1:31:20][%emt 0:01:00]} 4... Qd7 {[%clk 1:31:44][%emt 0:00:26]} 5. Nf3 {[%clk
1:30:52][%emt 0:00:58]} 5... b6 {[%clk 1:31:50][%emt 0:00:25]} 6. O-O {[%clk
1:30:49][%emt 0:00:32]} 6... Ba6 {[%clk 1:31:40][%emt 0:00:41]} 7. Bxa6 {[%clk
1:28:04][%emt 0:03:15]} 7... Nxa6 {[%clk 1:31:46][%emt 0:00:24]} 8. a3 {[%clk
1:28:10][%emt 0:00:24]} 8... c5 {[%clk 1:29:13][%emt 0:03:03]} 9. c3 {[%clk
1:27:41][%emt 0:00:58]} 9... Nb8 {[%clk 1:23:00][%emt 0:06:43]} 10. b4 {[%clk
1:22:37][%emt 0:05:34]} 10... Ng6 {[%clk 1:21:03][%emt 0:02:27]} 11. Re1
{[%clk 1:17:03][%emt 0:06:04]} 11... Be7 {[%clk 1:17:13][%emt 0:04:21]} 12.
Nbd2 {[%clk 1:13:53][%emt 0:03:39]} 12... a5 {[%clk 1:15:41][%emt 0:02:03]}
13. bxc5 {[%clk 1:05:44][%emt 0:08:38]} 13... bxc5 {[%clk 1:13:40][%emt
0:02:31]} 14. a4 {[%clk 1:03:57][%emt 0:02:17]} 14... O-O {[%clk 1:13:05][%emt
0:01:05]} 15. Nf1 {[%clk 1:00:49][%emt 0:03:38]} 15... Nc6 {[%clk
1:09:02][%emt 0:04:34]} 16. Ba3 {[%clk 0:58:15][%emt 0:03:03]} 16... c4 {[%clk
1:05:22][%emt 0:04:11]} 17. Bxe7 {[%clk 0:57:36][%emt 0:01:09]} 17... Qxe7
{[%clk 1:05:07][%emt 0:00:45]} 18. Qc2 {[%clk 0:55:45][%emt 0:02:21]} 18...
Rfb8 {[%clk 1:03:47][%emt 0:01:50]} 19. Reb1 {[%clk 0:55:33][%emt 0:00:40]}
19... Na7 {[%clk 1:00:51][%emt 0:03:27]} 20. Rxb8+ {[%clk 0:51:06][%emt
0:04:57]} 20... Rxb8 {[%clk 1:00:01][%emt 0:01:20]} 21. Rb1 {[%clk
0:51:18][%emt 0:00:18]} 21... Qc7 {[%clk 0:58:05][%emt 0:02:26]} 22. Rxb8+
{[%clk 0:50:44][%emt 0:01:03]} 22... Qxb8 {[%clk 0:58:21][%emt 0:00:15]} 23.
Ne3 {[%clk 0:42:31][%emt 0:08:43]} 23... Nf4 {[%clk 0:55:29][%emt 0:03:23]}
24. Nd2 {[%clk 0:27:38][%emt 0:15:20]} 24... Qb7 {[%clk 0:51:33][%emt 0:04:28]}
 25. h3 {[%clk 0:24:36][%emt 0:03:32]} 25... Nc8 {[%clk 0:49:20][%emt 0:02:43]}
 26. Nd1 {[%clk 0:22:53][%emt 0:02:13]} 26... Nd3 {[%clk 0:48:10][%emt
0:01:40]} 27. Kf1 {[%clk 0:17:15][%emt 0:06:07]} 27... Nf4 {[%clk
0:42:08][%emt 0:06:34]} 28. Kg1 {[%clk 0:16:21][%emt 0:01:23]} 28... h6 {[%clk
0:37:56][%emt 0:04:42]} 29. Nb2 {[%clk 0:15:08][%emt 0:01:43]} 29... Ne7
{[%clk 0:27:20][%emt 0:11:07]} 30. h4 {[%clk 0:14:16][%emt 0:01:22]} 30... Nc6
{[%clk 0:21:58][%emt 0:05:52]} 31. g3 {[%clk 0:13:53][%emt 0:00:53]} 31... Ng6
{[%clk 0:19:42][%emt 0:02:47]} 32. h5 {[%clk 0:13:23][%emt 0:00:59]} 32... Nf8
{[%clk 0:18:30][%emt 0:01:42]} 33. Kf1 {[%clk 0:12:28][%emt 0:01:24]} 33...
Qe7 {[%clk 0:17:54][%emt 0:01:07]} 34. f4 {[%clk 0:11:11][%emt 0:01:47]} 34...
Qb7 {[%clk 0:17:18][%emt 0:01:07]} 35. Kf2 {[%clk 0:10:48][%emt 0:00:51]}
35... Ne7 {[%clk 0:15:04][%emt 0:02:45]} 36. g4 {[%clk 0:10:24][%emt 0:00:53]}
36... Nc8 {[%clk 0:14:36][%emt 0:00:59]} 37. Kg3 {[%clk 0:10:06][%emt 0:00:48]}
 37... Ne7 {[%clk 0:14:25][%emt 0:00:42]} 38. Kf2 {[%clk 0:10:12][%emt
0:00:23]} 38... g6 {[%clk 0:12:08][%emt 0:02:47]} 39. Nf1 {[%clk 0:07:26][%emt
0:03:16]} 39... Nc6 {[%clk 0:11:42][%emt 0:00:56]} 1/2-1/2

[White "PRIOL RAMIERE, Sullivan"]
[Black "BIBIK, Artur"]
[WhiteElo "1646"]
[BlackElo "1540"]
[Result "1/2-1/2"]
[Date "2026.03.07"]

[Event "Chpt Reg Jeunes Occitanie 2026 - Espalion"]
[Site "Espalion, France"]
[Round "7.19"]
[ECO "?"]
[Annotator "?"]
[TimeControl "1h30 + 30sec/cp"]

1. d4 {[%clk 1:30:58]} 1... d5 {[%clk 1:30:54][%emt 0:00:07]} 2. Nc3 {[%clk
1:31:20][%emt 0:00:08]} 2... Bf5 {[%clk 1:31:10][%emt 0:00:14]} 3. Bf4 {[%clk
1:31:39][%emt 0:00:11]} 3... a6 {[%clk 1:31:25][%emt 0:00:16]} 4. e3 {[%clk
1:31:37][%emt 0:00:31]} 4... Nf6 {[%clk 1:31:32][%emt 0:00:24]} 5. h3 {[%clk
1:31:28][%emt 0:00:38]} 5... e6 {[%clk 1:31:33][%emt 0:00:31]} 6. Nf3 {[%clk
1:31:38][%emt 0:00:18]} 6... Bb4 {[%clk 1:31:17][%emt 0:00:46]} 7. a3 {[%clk
1:31:34][%emt 0:00:34]} 7... Bxc3+ {[%clk 1:31:10][%emt 0:00:37]} 8. bxc3
{[%clk 1:31:29][%emt 0:00:34]} 8... O-O {[%clk 1:30:18][%emt 0:01:22]} 9. c4
{[%clk 1:29:33][%emt 0:02:27]} 9... c5 {[%clk 1:24:41][%emt 0:06:07]} 10. Nh4
{[%clk 1:21:18][%emt 0:08:44]} 10... Ne4 {[%clk 1:22:41][%emt 0:02:31]} 11.
Nf3 {[%clk 1:13:11][%emt 0:08:37]} 11... Qa5+ {[%clk 1:21:51][%emt 0:01:19]}
12. Nd2 {[%clk 1:11:48][%emt 0:01:53]} 12... Qc3 {[%clk 1:20:56][%emt 0:01:23]}
 13. Ra2 {[%clk 1:05:30][%emt 0:06:50]} 13... dxc4 {[%clk 1:19:10][%emt
0:02:17]} 14. f3 {[%clk 1:02:47][%emt 0:03:12]} 14... Nf6 {[%clk 1:13:15][%emt
0:06:25]} 15. Qa1 {[%clk 0:55:04][%emt 0:08:13]} 15... cxd4 {[%clk
1:06:51][%emt 0:06:54]} 16. exd4 {[%clk 0:48:23][%emt 0:07:11]} 16... Qxa1+
{[%clk 1:06:53][%emt 0:00:27]} 17. Rxa1 {[%clk 0:48:45][%emt 0:00:09]} 17...
c3 {[%clk 1:06:20][%emt 0:01:04]} 18. Nc4 {[%clk 0:43:23][%emt 0:05:51]} 18...
Nd5 {[%clk 1:05:34][%emt 0:01:16]} 19. Bd6 {[%clk 0:40:25][%emt 0:03:27]}
19... Rd8 {[%clk 1:03:26][%emt 0:02:39]} 20. Bc5 {[%clk 0:39:35][%emt 0:01:19]}
 20... Bxc2 {[%clk 1:02:39][%emt 0:01:18]} 21. Rc1 {[%clk 0:36:55][%emt
0:03:11]} 21... Bb3 {[%clk 1:02:40][%emt 0:00:28]} 22. Na5 {[%clk
0:35:25][%emt 0:01:59]} 22... Ba2 {[%clk 0:58:58][%emt 0:04:12]} 23. Nxb7
{[%clk 0:34:24][%emt 0:01:31]} 1/2-1/2

[White "POUNCHOU-GUILHAMOT, Martin"]
[Black "BAROUKH, Pau"]
[WhiteElo "1645"]
[BlackElo "1712"]
[Result "1-0"]
[Date "2026.03.07"]

[Event "Chpt Reg Jeunes Occitanie 2026 - Espalion"]
[Site "Espalion, France"]
[Round "7.20"]
[ECO "?"]
[Annotator "?"]
[TimeControl "1h30 + 30sec/cp"]

1. e4 {[%clk 1:30:57][%emt 0:00:02]} 1... e6 {[%clk 1:30:53][%emt 0:00:07]} 2.
d4 {[%clk 1:31:22][%emt 0:00:05]} 2... d5 {[%clk 1:31:15][%emt 0:00:08]} 3. e5
{[%clk 1:31:49][%emt 0:00:05]} 3... c5 {[%clk 1:31:16][%emt 0:00:28]} 4. c3
{[%clk 1:32:13]} 4... Nc6 {[%clk 1:31:28][%emt 0:00:23]} 5. Nf3 {[%clk
1:32:29]} 5... cxd4 {[%clk 1:31:24][%emt 0:00:47]} 6. cxd4 {[%clk 1:32:47]}
6... Bb4+ {[%clk 1:31:29][%emt 0:00:38]} 7. Nc3 {[%clk 1:31:48]} 7... f6
{[%clk 1:30:01][%emt 0:03:27]} 8. a3 {[%clk 1:22:19]} 8... Bxc3+ {[%clk
1:30:01]} 9. bxc3 {[%clk 1:22:19]} 9... fxe5 {[%clk 1:30:01]} 10. dxe5 {[%clk
1:22:19]} 10... Nge7 {[%clk 1:29:07][%emt 0:13:27]} 11. Bd3 {[%clk 1:21:38]}
11... b6 {[%clk 1:29:07]} 12. O-O {[%clk 1:21:38]} 12... Bb7 {[%clk
1:15:24][%emt 0:24:18]} 13. Qa4 {[%clk 1:07:25]} 13... Qd7 {[%clk 1:15:24]}
14. Qg4 {[%clk 1:07:25]} 14... O-O-O {[%clk 1:15:24]} 15. Re1 {[%clk 1:07:25]}
15... h5 {[%clk 1:15:24]} 16. Qh3 {[%clk 1:07:25]} 16... Nf5 {[%clk
1:04:15][%emt 0:33:58]} 17. Bxf5 {[%clk 0:53:15]} 17... exf5 {[%clk
1:04:35][%emt 0:02:15]} 18. e6 {[%clk 0:53:28]} 18... Qd6 {[%clk 1:04:07][%emt
0:01:16]} 19. Qxf5 {[%clk 0:53:06]} 19... Rdf8 {[%clk 1:02:44][%emt 0:02:45]}
20. Qg5 {[%clk 0:49:43]} 20... Qe7 {[%clk 0:57:34][%emt 0:09:32]} 21. Qxe7
{[%clk 0:46:38]} 21... Nxe7 {[%clk 0:57:59][%emt 0:03:41]} 22. a4 {[%clk
0:46:44]} 22... Rhg8 {[%clk 0:56:13][%emt 0:02:41]} 23. Ba3 {[%clk 0:46:08]}
23... Kd8 {[%clk 0:56:29][%emt 0:01:18]} 24. Ne5 {[%clk 0:43:35]} 24... Re8
{[%clk 0:55:20][%emt 0:04:43]} 25. Nf7+ {[%clk 0:43:23]} 25... Kc7 {[%clk
0:55:43][%emt 0:00:49]} 26. Nd6 {[%clk 0:42:29]} 26... Ng6 {[%clk
0:54:34][%emt 0:03:03]} 27. Nxe8+ {[%clk 0:42:35]} 27... Rxe8 {[%clk
0:54:57][%emt 0:00:30]} 28. Rad1 {[%clk 0:41:59]} 28... Nf4 {[%clk
0:54:16][%emt 0:02:18]} 29. e7 {[%clk 0:41:45]} 29... Ba6 {[%clk 0:54:07][%emt
0:01:23]} 30. Rd2 {[%clk 0:40:19]} 30... Bc4 {[%clk 0:53:31][%emt 0:03:01]}
31. Re5 {[%clk 0:38:15]} 31... h4 {[%clk 0:51:50][%emt 0:04:47]} 32. Rf5
{[%clk 0:37:50]} 32... Ng6 {[%clk 0:51:12][%emt 0:02:02]} 33. Rf7 {[%clk
0:37:03]} 33... d4 {[%clk 0:50:38][%emt 0:02:22]} 34. Rxg7 {[%clk 0:37:13]}
34... dxc3 {[%clk 0:50:38]} 35. Rc2 {[%clk 0:37:13]} 35... Nf4 {[%clk 0:50:38]}
 36. Kh1 {[%clk 0:37:13]} 36... Ne2 {[%clk 0:50:38]} 37. f4 {[%clk 0:37:13]}
37... Bd3 {[%clk 0:50:38]} 38. Rxe2 {[%clk 0:37:13]} 38... Bxe2 {[%clk
0:50:38]} 39. f5 {[%clk 0:37:13]} 39... c2 {[%clk 0:50:38]} 40. f6 {[%clk
0:37:13]} 40... Kb7 {[%clk 0:45:51][%emt 0:26:18]} 41. f7 {[%clk 0:22:45]}
41... Rc8 {[%clk 0:46:14][%emt 0:00:24]} 42. Bc1 {[%clk 0:22:50][%emt 0:00:42]}
 1-0

[White "LABARBE, Gabriel"]
[Black "BENYETTOU, Louis"]
[WhiteElo "1731"]
[BlackElo "1841"]
[Result "1/2-1/2"]
[Date "2026.03.07"]